fUST/lending_fUST_20250602
["ID","MTS","AMOUNT","RATE_DAILY","PERIOD"]
[363704484,1748827850110,-963.961,0.00023248,2]
[363704485,1748827850119,-62219.7413341,0.00023965,20]
[363704486,1748827850138,-5000.0,0.00017621,2]
[363704487,1748827850149,-51321.67754159,0.00023965,20]
[363704488,1748827850161,-5114.67642437,0.00023965,20]
[363704491,1748828289840,308.0,0.00024658,120]
[363704492,1748828339858,4389.0,0.00024658,120]
[363704495,1748828408049,239.192066,0.00013699,2]
[363704496,1748828620735,280.0,0.00024657,120]
[363704501,1748828915622,237.0,0.00024649,120]
[363704518,1748829038054,-615.05167411,0.00017092,2]
[363704519,1748829038209,-4384.94832589,0.00017092,2]
[363704520,1748829038219,-300.0,0.00017615,2]
[363704521,1748829038229,-12765.5967043,0.00017616,2]
[363704522,1748829038238,-442.30700441,0.00017655,2]
[363704523,1748829038249,-308.78,0.00017686,2]
[363704524,1748829038258,-180.26089504,0.00017697,2]
[363704525,1748829038268,-820.40868987,0.00017796,2]
[363704526,1748829038278,-430.0,0.00017796,2]
[363704527,1748829038287,-430.0,0.00017796,2]
[363704528,1748829038297,-492.56889183,0.00017796,2]
[363704529,1748829038306,-430.0,0.00017796,2]
[363704530,1748829038315,-530.15385059,0.00017796,2]
[363704531,1748829038325,-453.68641069,0.00017796,2]
[363704532,1748829038335,-437.33461993,0.00017796,2]
[363704533,1748829038344,-244.94,0.00017796,2]
[363704534,1748829038353,-430.0,0.00017796,2]
[363704535,1748829038361,-468.7334419,0.00017796,2]
[363704536,1748829038370,-434.04048788,0.00017797,2]
[363704537,1748829038380,-431.30683305,0.00017797,2]
[363704538,1748829038389,-439.56809522,0.00017797,2]
[363704539,1748829038398,-436.54738239,0.00017797,2]
[363704540,1748829038407,-443.45311406,0.00017797,2]
[363704541,1748829038416,-433.71951333,0.00017797,2]
[363704542,1748829038426,-465.02841001,0.00017797,2]
[363704543,1748829038435,-442.44938534,0.00017797,2]
[363704544,1748829038444,-445.17489845,0.00017797,2]
[363704545,1748829038453,-499.96895281,0.00017797,2]
[363704546,1748829038462,-440.79405161,0.00017797,2]
[363704547,1748829038471,-441.34864576,0.00017797,2]
[363704548,1748829038480,-485.35050231,0.00017797,2]
[363704549,1748829038489,-430.94314449,0.00017797,2]
[363704550,1748829038498,-441.45913133,0.00017797,2]
[363704551,1748829038507,-440.99897825,0.00017797,2]
[363704552,1748829038519,-461.26903537,0.00017797,2]
[363704553,1748829038528,-440.28625667,0.00017797,2]
[363704554,1748829038536,-517.30196012,0.00017797,2]
[363704555,1748829038546,-430.0,0.00017797,2]
[363704556,1748829038555,-440.00941845,0.00017797,2]
[363704557,1748829038564,-440.99474585,0.00017797,2]
[363704558,1748829038574,-455.36592827,0.00017797,2]
[363704559,1748829038584,-430.0,0.00017797,2]
[363704560,1748829038593,-311.72960514,0.00017797,2]
[363704561,1748829038603,-433.46358928,0.00017797,2]
[363704562,1748829038613,-226.89014246,0.00017797,2]
[363704563,1748829038622,-439.39217923,0.00017797,2]
[363704564,1748829038631,-430.0,0.00017797,2]
[363704565,1748829038641,-435.67100433,0.00017797,2]
[363704566,1748829038650,-447.1189379,0.00017797,2]
[363704567,1748829038660,-573.11054817,0.00017797,2]
[363704568,1748829038669,-430.0,0.00017797,2]
[363704569,1748829038679,-430.0,0.00017797,2]
[363704570,1748829038689,-433.24160533,0.00017797,2]
[363704571,1748829038698,-500.60080502,0.00017798,2]
[363704572,1748829038708,-449.16503355,0.00017798,2]
[363704573,1748829038718,-453.6076316,0.00017798,2]
[363704574,1748829038727,-442.57542213,0.00017798,2]
[363704575,1748829038736,-438.17399433,0.00017798,2]
[363704576,1748829038745,-436.81009848,0.00017798,2]
[363704577,1748829038755,-452.75544499,0.00017798,2]
[363704578,1748829038767,-432.00097275,0.00017798,2]
[363704579,1748829038776,-439.340788,0.00017798,2]
[363704580,1748829038786,-336.82939588,0.00017798,2]
[363704581,1748829038796,-1417.57,0.00017798,2]
[363704582,1748829038805,-444.63360297,0.00017799,2]
[363704583,1748829038814,-438.57435997,0.00017799,2]
[363704584,1748829038824,-563.46561552,0.00018069,2]
[363704585,1748829038833,-500.0,0.00018069,2]
[363704586,1748829038842,-500.0,0.00018069,2]
[363704587,1748829038851,-430.0,0.0001807,2]
[363704588,1748829038861,-430.0,0.0001807,2]
[363704589,1748829038870,-430.0,0.0001807,2]
[363704590,1748829038879,-182.02349044,0.0001807,2]
[363704591,1748829038889,-430.0,0.00018071,2]
[363704592,1748829038898,-430.0,0.00018071,2]
[363704593,1748829038907,-554.84500388,0.00018071,2]
[363704594,1748829038916,-392.1,0.00018071,2]
[363704595,1748829038925,-430.0,0.00018071,2]
[363704596,1748829038934,-1417.57,0.00018072,2]
[363704597,1748829038943,-336.17813766,0.00018344,2]
[363704598,1748829038952,-430.0,0.00018344,2]
[363704599,1748829038962,-430.0,0.00018344,2]
[363704600,1748829038971,-161.53527929,0.00018345,2]
[363704601,1748829038980,-390.61942511,0.00018345,2]
[363704602,1748829038990,-430.0,0.00018345,2]
[363704603,1748829038999,-1417.57,0.00018346,2]
[363704604,1748829039008,-617.56,0.00018528,2]
[363704605,1748829039018,-500.0,0.00018584,2]
[363704606,1748829039027,-430.0,0.00018618,2]
[363704607,1748829039037,-430.0,0.00018618,2]
[363704608,1748829039046,-430.0,0.00018619,2]
[363704609,1748829039056,-1417.57,0.0001862,2]
[363704610,1748829039065,-278.56603002,0.00018892,2]
[363704611,1748829039074,-430.0,0.00018892,2]
[363704612,1748829039083,-430.0,0.00018893,2]
[363704613,1748829039092,-1417.57,0.00018894,2]
[363704614,1748829039101,-1053.16465997,0.000189,2]
[363704615,1748829039110,-160.0,0.0001897,2]
[363704616,1748829039119,-1053.16465985,0.00019072,2]
[363704617,1748829039128,-238.20474015,0.00019166,2]
[363704618,1748829039137,-430.0,0.00019167,2]
[363704619,1748829039146,-430.87061844,0.00019168,2]
[363704620,1748829039158,-430.86821487,0.00019168,2]
[363704621,1748829039166,-430.0,0.00019168,2]
[363704622,1748829039173,-1417.57,0.00019168,2]
[363704623,1748829039183,-173.899305,0.00019178,2]
[363704624,1748829039192,-420.0,0.00019228,2]
[363704625,1748829039203,-1053.16465985,0.00019245,2]
[363704626,1748829039212,-842.5625,0.0001937,2]
[363704627,1748829039222,-160.0,0.0001937,2]
[363704628,1748829039232,-212.80060342,0.0001937,2]
[363704629,1748829039242,-926.34,0.0001937,2]
[363704630,1748829039252,-160.0,0.0001937,2]
[363704631,1748829039262,-160.0,0.0001937,2]
[363704632,1748829039273,-229.3709046,0.0001937,2]
[363704633,1748829039282,-160.0,0.0001937,2]
[363704634,1748829039292,-160.0,0.0001937,2]
[363704635,1748829039301,-423.51412927,0.0001937,2]
[363704636,1748829039311,-160.0,0.00019372,2]
[363704637,1748829039320,-1053.16465985,0.00019417,2]
[363704638,1748829039329,-430.0,0.00019441,2]
[363704639,1748829039339,-1417.57,0.00019442,2]
[363704640,1748829039347,-500.0,0.00019562,2]
[363704641,1748829039355,-1053.16465985,0.0001959,2]
[363704642,1748829039364,-330.233,0.00019643,2]
[363704643,1748829039373,-430.0,0.00019715,2]
[363704644,1748829039382,-1417.57,0.00019716,2]
[363704645,1748829039391,-1053.16465985,0.00019762,2]
[363704646,1748829039400,-1053.16465985,0.00019934,2]
[363704647,1748829039409,-430.0,0.00019989,2]
[363704648,1748829039419,-1417.57,0.0001999,2]
[363704649,1748829039434,-1053.16465985,0.00020107,2]
[363704651,1748829039443,-700.0,0.00020129,2]
[363704652,1748829039452,-239.192066,0.00020187,2]
[363704654,1748829039462,-1235.12,0.00020212,2]
[363704656,1748829039471,-430.0,0.00020263,2]
[363704657,1748829039481,-1417.57,0.00020264,2]
[363704658,1748829039490,-1053.16465985,0.00020279,3]
[363704659,1748829039500,-161.54268993,0.0002034,2]
[363704660,1748829039508,-1053.16465985,0.00020452,3]
[363704661,1748829039518,-430.0,0.00020537,2]
[363704662,1748829039526,-1417.57,0.00020538,2]
[363704663,1748829039535,-500.0,0.0002054,2]
[363704664,1748829039544,-1053.16465985,0.00020624,3]
[363704665,1748829039552,-1000.0,0.00020789,7]
[363704666,1748829039561,-1053.16465985,0.00020797,4]
[363704667,1748829039571,-269.9,0.00020802,10]
[363704668,1748829039580,-430.0,0.00020811,2]
[363704669,1748829039588,-1417.57,0.00020812,2]
[363704670,1748829039597,-1053.16465985,0.00020969,4]
[363704671,1748829039607,-587.0,0.00020988,2]
[363704672,1748829039615,-1543.9,0.00021055,2]
[363704673,1748829039624,-430.0,0.00021085,2]
[363704674,1748829039633,-1417.57,0.00021086,2]
[363704675,1748829039642,-218.43,0.000211,2]
[363704676,1748829039651,-1053.16465985,0.00021141,4]
[363704677,1748829039659,-700.0,0.00021225,2]
[363704678,1748829039668,-1053.16465985,0.00021314,5]
[363704680,1748829039676,-430.0,0.00021359,2]
[363704683,1748829039684,-1417.57,0.0002136,2]
[363704685,1748829039692,-1053.16465985,0.00021486,5]
[363704688,1748829039701,-500.0,0.00021567,2]
[363704691,1748829039711,-430.0,0.00021633,2]
[363704694,1748829039720,-1417.57,0.00021634,2]
[363704697,1748829039728,-1053.16465985,0.00021659,5]
[363704699,1748829039736,-1053.16465985,0.00021831,6]
[363704702,1748829039743,-323.87,0.00021864,10]
[363704705,1748829039751,-5000.0,0.00021874,2]
[363704707,1748829039759,-187.31,0.00021887,10]
[363704710,1748829039767,-1852.68,0.00021897,2]
[363704713,1748829039776,-430.0,0.00021907,2]
[363704715,1748829039786,-1417.57,0.00021908,2]
[363704716,1748829039795,-150.0,0.00021918,2]
[363704717,1748829039804,-635.05710346,0.00021918,2]
[363704718,1748829039813,-161.0,0.00022,2]
[363704719,1748829039823,-172.0,0.00022,2]
[363704720,1748829039832,-1053.16465985,0.00022003,6]
[363704721,1748829039842,-1053.16465985,0.00022176,6]
[363704722,1748829039851,-430.0,0.00022181,2]
[363704723,1748829039861,-1417.57,0.00022182,2]
[363704724,1748829039870,-700.0,0.00022321,2]
[363704725,1748829039880,-1053.16465985,0.00022348,7]
[363704726,1748829039889,-218.43,0.000224,7]
[363704727,1748829039899,-430.0,0.00022455,2]
[363704728,1748829039909,-1417.57,0.00022456,2]
[363704729,1748829039918,-1053.16465985,0.00022521,7]
[363704730,1748829039928,-375.96917853,0.00022558,2]
[363704731,1748829039937,-155.07391524,0.00022578,2]
[363704732,1748829039947,-151.0,0.00022578,2]
[363704733,1748829039956,-300.0,0.00022578,2]
[363704734,1748829039966,-300.0,0.00022578,2]
[363704735,1748829039976,-2000.0,0.00022578,2]
[363704736,1748829039985,-300.0,0.00022578,2]
[363704737,1748829039995,-2000.0,0.00022578,2]
[363704738,1748829040005,-207.4,0.00022578,2]
[363704739,1748829040015,-300.0,0.00022578,2]
[363704740,1748829040025,-2000.0,0.00022578,2]
[363704741,1748829040034,-300.0,0.00022578,2]
[363704742,1748829040044,-5000.0,0.00022578,2]
[363704743,1748829040053,-2000.0,0.00022578,2]
[363704744,1748829040063,-300.0,0.00022578,2]
[363704745,1748829040076,-2000.0,0.00022578,2]
[363704746,1748829040088,-300.0,0.00022578,2]
[363704747,1748829040098,-2000.0,0.00022578,2]
[363704748,1748829040107,-300.0,0.00022578,2]
[363704749,1748829040116,-2000.0,0.00022578,2]
[363704750,1748829040125,-300.0,0.00022578,2]
[363704751,1748829040135,-2000.0,0.00022578,2]
[363704753,1748829040144,-300.0,0.00022578,2]
[363704754,1748829040156,-2000.0,0.00022578,2]
[363704755,1748829040165,-300.0,0.00022578,2]
[363704757,1748829040175,-2000.0,0.00022578,2]
[363704758,1748829040183,-300.0,0.00022578,2]
[363704760,1748829040193,-2000.0,0.00022578,2]
[363704762,1748829040203,-300.0,0.00022578,2]
[363704764,1748829040212,-367.77540194,0.00022578,2]
[363704766,1748829040221,-300.0,0.00022578,2]
[363704768,1748829040231,-300.0,0.00022578,2]
[363704770,1748829040240,-500.0,0.00022645,2]
[363704772,1748829040250,-5020.33029751,0.00022675,2]
[363704774,1748829040259,-5000.0,0.00022682,2]
[363704776,1748829040271,-1053.16465985,0.00022693,7]
[363704778,1748829040280,-430.0,0.00022729,2]
[363704780,1748829040290,-1417.57,0.0002273,2]
[363704782,1748829040299,-2161.45,0.00022739,2]
[363704784,1748829040310,-1053.16465985,0.00022866,8]
[363704786,1748829040320,-160.0,0.00022895,3]
[363704788,1748829040329,-4494.3610774,0.000229,2]
[363704790,1748829040338,-823.0,0.00022909,2]
[363704792,1748829040349,-501.29610451,0.00022973,2]
[363704794,1748829040358,-501.46558268,0.00022973,2]
[363704795,1748829040368,-501.93301776,0.00022973,2]
[363704796,1748829040378,-272.22500081,0.00022973,2]
[363704797,1748829040388,-503.05720911,0.00022973,2]
[363704798,1748829040397,-578.69287274,0.00022973,2]
[363704799,1748829040408,-500.53542143,0.00022973,2]
[363704800,1748829040537,-502.11001193,0.00022973,2]
[363704801,1748829040547,-503.28265862,0.00022973,2]
[363704802,1748829040557,-501.15150173,0.00022973,2]
[363704803,1748829040567,-502.08773478,0.00022973,2]
[363704804,1748829040576,-380.44,0.00022989,3]
[363704805,1748829040586,-190.22,0.00022989,3]
[363704807,1748829040596,-570.68,0.00022989,3]
[363704809,1748829040605,-978.02684102,0.00022999,2]
[363704811,1748829040614,-500.0,0.00022999,2]
[363704813,1748829040624,-978.02684102,0.00022999,2]
[363704815,1748829040633,-978.02684102,0.00022999,2]
[363704817,1748829040643,-500.0,0.00022999,2]
[363704819,1748829040652,-500.0,0.00022999,2]
[363704821,1748829040662,-978.02684102,0.00022999,2]
[363704823,1748829040671,-500.0,0.00022999,2]
[363704825,1748829040681,-978.02684102,0.00022999,2]
[363704827,1748829040691,-978.02684102,0.00022999,2]
[363704830,1748829040701,-978.02684102,0.00022999,2]
[363704832,1748829040711,-500.0,0.00022999,2]
[363704833,1748829040720,-978.02684102,0.00022999,2]
[363704835,1748829040729,-373.31534064,0.00022999,2]
[363704837,1748829040739,-978.02684102,0.00022999,2]
[363704840,1748829040748,-500.0,0.00022999,2]
[363704842,1748829040758,-500.0,0.00022999,2]
[363704843,1748829040768,-500.0,0.00022999,2]
[363704845,1748829040777,-978.02684102,0.00022999,2]
[363704847,1748829040787,-500.0,0.00022999,2]
[363704849,1748829040797,-978.02684102,0.00022999,2]
[363704851,1748829040806,-978.02684102,0.00022999,2]
[363704853,1748829040816,-500.0,0.00022999,2]
[363704855,1748829040825,-978.02684102,0.00022999,2]
[363704857,1748829040834,-978.02684102,0.00022999,2]
[363704859,1748829040843,-500.0,0.00022999,2]
[363704862,1748829040853,-500.0,0.00022999,2]
[363704864,1748829040862,-978.02684102,0.00022999,2]
[363704866,1748829040871,-978.02684102,0.00022999,2]
[363704868,1748829040880,-500.0,0.00022999,2]
[363704870,1748829040888,-978.02684102,0.00022999,2]
[363704872,1748829040898,-500.0,0.00022999,2]
[363704874,1748829040907,-978.02684102,0.00022999,2]
[363704876,1748829040916,-978.02684102,0.00022999,2]
[363704878,1748829040925,-978.02684102,0.00022999,2]
[363704880,1748829040934,-978.02684102,0.00022999,2]
[363704882,1748829040943,-978.02684102,0.00022999,2]
[363704884,1748829040954,-500.0,0.00022999,2]
[363704886,1748829040963,-500.0,0.00022999,2]
[363704888,1748829040973,-1089.80133715,0.00022999,2]
[363704890,1748829040983,-1089.80133715,0.00022999,2]
[363704892,1748829040992,-1089.80133715,0.00022999,2]
[363704894,1748829041001,-346.56865838,0.00022999,2]
[363704896,1748829041010,-1089.80133715,0.00022999,2]
[363704898,1748829041020,-1089.80133715,0.00022999,2]
[363704900,1748829041029,-1089.80133715,0.00022999,2]
[363704902,1748829041039,-1089.80133715,0.00022999,2]
[363704904,1748829041048,-600.0,0.00022999,2]
[363704906,1748829041058,-504.06,0.00023,3]
[363704908,1748829041067,-500.0,0.00023,3]
[363704910,1748829041077,-500.0,0.00023,3]
[363704912,1748829041086,-500.0,0.00023,4]
[363704914,1748829041096,-500.0,0.00023,3]
[363704916,1748829041105,-200548.15752227,0.00023,20]
[363704918,1748829041113,-61000.0,0.00023,4]
[363704920,1748829041122,-1959.56,0.00023,2]
[363704922,1748829041131,-430.0,0.00023003,2]
[363704924,1748829041140,-1417.57,0.00023004,2]
[363704926,1748829041150,-734.2505846,0.00023014,2]
[363704928,1748829041164,-187.81097836,0.00023014,2]
[363704931,1748829041173,-161.0,0.00023014,7]
[363704933,1748829041183,-1053.16465985,0.00023038,8]
[363704935,1748829041193,-273.13548576,0.00023126,2]
[363704937,1748829041203,-5000.0,0.00023126,2]
[363704939,1748829041212,-4494.3610774,0.00023139,2]
[363704941,1748829041221,-8949.06,0.00023185,7]
[363704943,1748829041232,-170.69,0.00023185,7]
[363704945,1748829041241,-1053.16465985,0.0002321,8]
[363704947,1748829041251,-430.0,0.00023277,2]
[363704949,1748829041260,-1417.57,0.00023278,2]
[363704951,1748829041270,-500.0,0.000233,4]
[363704953,1748829041279,-4494.3610774,0.00023379,2]
[363704955,1748829041288,-1053.16465985,0.00023383,9]
[363704957,1748829041298,-700.0,0.00023417,2]
[363704959,1748829041307,-1947.305856,0.00023485,3]
[363704961,1748829041319,-500.0,0.000235,3]
[363704963,1748829041329,-218.43,0.000235,7]
[363704965,1748829041338,-500.0,0.0002353,2]
[363704967,1748829041347,-161.16836939,0.00023551,2]
[363704969,1748829041357,-1417.57,0.00023552,2]
[363704971,1748829041366,-1053.16465985,0.00023555,9]
[363704973,1748829041375,-2470.23,0.00023581,2]
[363704975,1748829041385,-604.94743205,0.00023583,2]
[363704977,1748829041394,-4494.3610774,0.00023618,2]
[363704979,1748829041403,-5000.0,0.00023674,2]
[363704981,1748829041411,-154.26,0.000237,31]
[363704982,1748829041421,-154.26,0.000237,31]
[363704984,1748829041430,-154.26,0.000237,31]
[363704986,1748829041439,-154.26,0.000237,31]
[363704988,1748829041448,-154.26,0.000237,31]
[363704990,1748829041457,-154.26,0.000237,31]
[363704992,1748829041467,-154.26,0.000237,31]
[363704994,1748829041476,-13659.96845735,0.00023718,2]
[363704996,1748829041485,-1053.16465985,0.00023728,9]
[363704998,1748829041493,-160.0,0.0002375,4]
[363705000,1748829041501,-160.97152604,0.0002375,5]
[363705002,1748829041510,-405.0,0.00023755,2]
[363705004,1748829041521,-2235.437,0.00023755,2]
[363705006,1748829041530,-711.048,0.00023755,2]
[363705008,1748829041539,-309.2533547,0.00023757,3]
[363705009,1748829041549,-160.53819605,0.00023799,2]
[363705011,1748829041558,-2000.0,0.000238,2]
[363705013,1748829041567,-2000.0,0.000238,2]
[363705015,1748829041577,-410.44,0.000238,2]
[363705017,1748829041586,-152.647058,0.000238,7]
[363705019,1748829041595,-500.0,0.000238,9]
[363705021,1748829041605,-500.90420722,0.000238,9]
[363705024,1748829041615,-1417.57,0.00023826,2]
[363705026,1748829041624,-166.0081366,0.00023857,2]
[363705028,1748829041634,-4494.3610774,0.00023857,2]
[363705030,1748829041644,-4314.50539936,0.00023897,5]
[363705032,1748829041654,-1053.16465985,0.000239,10]
[363705034,1748829041663,-215.0738,0.00023947,2]
[363705036,1748829041673,-151.0,0.00023955,7]
[363705038,1748829041683,-151.0,0.00023955,7]
[363705040,1748829041693,-151.0,0.00023955,7]
[363705042,1748829041703,-151.915411,0.00023955,7]
[363705044,1748829041712,-151.0,0.00023955,7]
[363705046,1748829041722,-151.0,0.00023955,7]
[363705048,1748829041731,-286.205655,0.00023955,7]
[363705050,1748829041741,-151.611888,0.00023955,7]
[363705052,1748829041750,-151.0,0.00023955,7]
[363705054,1748829041760,-151.875321,0.00023955,7]
[363705056,1748829041772,-248.952758,0.00023955,7]
[363705058,1748829041781,-154.227016,0.00023955,7]
[363705060,1748829041790,-157.230286,0.00023955,7]
[363705062,1748829041799,-151.0,0.00023955,7]
[363705064,1748829041809,-153.086,0.00023955,7]
[363705066,1748829041818,-153.322627,0.00023955,7]
[363705068,1748829041827,-152.658881,0.00023955,7]
[363705070,1748829041837,-151.0,0.00023955,7]
[363705072,1748829041846,-151.0,0.00023955,7]
[363705074,1748829041855,-165.463131,0.00023955,7]
[363705076,1748829041864,-204.97955,0.00023955,7]
[363705078,1748829041873,-151.0,0.00023955,7]
[363705080,1748829041882,-151.0,0.00023955,7]
[363705082,1748829041891,-151.0,0.00023956,7]
[363705084,1748829041900,-151.0,0.00023956,7]
[363705086,1748829041910,-151.0,0.00023956,7]
[363705088,1748829041919,-151.0,0.00023956,7]
[363705090,1748829041928,-151.0,0.00023956,7]
[363705092,1748829041937,-151.0,0.00023956,7]
[363705095,1748829041947,-151.0,0.00023956,7]
[363705097,1748829041957,-151.0,0.00023956,7]
[363705099,1748829041966,-151.0,0.00023956,7]
[363705101,1748829041975,-151.0,0.00023956,7]
[363705103,1748829041984,-151.0,0.00023956,7]
[363705105,1748829041994,-151.0,0.00023956,7]
[363705107,1748829042003,-151.0,0.00023956,7]
[363705109,1748829042013,-151.0,0.00023956,7]
[363705111,1748829042024,-151.0,0.00023956,7]
[363705113,1748829042033,-151.0,0.00023956,7]
[363705115,1748829042043,-237.831571,0.00023956,7]
[363705117,1748829042052,-152.789035,0.00023957,7]
[363705119,1748829042061,-152.604195,0.00023957,7]
[363705121,1748829042070,-153.306223,0.00023957,7]
[363705123,1748829042080,-152.379498,0.00023957,7]
[363705125,1748829042089,-151.0,0.00023957,7]
[363705127,1748829042098,-159.82252,0.00023957,7]
[363705129,1748829042107,-156.568497,0.00023957,7]
[363705131,1748829042116,-151.0,0.00023957,7]
[363705133,1748829042125,-151.0,0.00023957,7]
[363705135,1748829042135,-151.0,0.00023957,7]
[363705137,1748829042144,-230.624931,0.00023957,7]
[363705139,1748829042153,-197.42596,0.00023957,7]
[363705140,1748829042164,-151.0,0.00023957,7]
[363705143,1748829042174,-151.0,0.00023957,7]
[363705145,1748829042183,-151.0,0.00023957,7]
[363705147,1748829042192,-151.0,0.00023957,7]
[363705149,1748829042201,-151.0,0.00023957,7]
[363705151,1748829042210,-151.0,0.00023957,7]
[363705153,1748829042219,-151.0,0.00023957,7]
[363705155,1748829042228,-151.0,0.00023957,7]
[363705157,1748829042237,-151.0,0.00023957,7]
[363705159,1748829042246,-151.0,0.00023957,7]
[363705161,1748829042255,-259.167059,0.00023957,7]
[363705163,1748829042264,-151.0,0.00023957,7]
[363705165,1748829042275,-151.915568,0.00023957,7]
[363705167,1748829042284,-151.0,0.00023957,7]
[363705169,1748829042294,-151.0,0.00023957,7]
[363705171,1748829042305,-151.0,0.00023957,7]
[363705173,1748829042314,-151.0,0.00023957,7]
[363705175,1748829042323,-151.0,0.00023957,7]
[363705177,1748829042334,-253.123333,0.00023957,7]
[363705179,1748829042343,-151.0,0.00023957,7]
[363705181,1748829042353,-151.0,0.00023957,7]
[363705183,1748829042362,-298.289796,0.00023957,7]
[363705185,1748829042371,-151.511974,0.00023957,7]
[363705187,1748829042381,-151.0,0.00023957,7]
[363705189,1748829042391,-151.0,0.00023957,7]
[363705191,1748829042400,-216.60295,0.00023957,7]
[363705193,1748829042409,-151.0,0.00023957,7]
[363705195,1748829042419,-151.0,0.00023957,7]
[363705197,1748829042428,-154.370499,0.00023957,7]
[363705199,1748829042437,-151.0,0.00023958,7]
[363705202,1748829042446,-151.0,0.00023958,7]
[363705204,1748829042455,-151.0,0.00023958,7]
[363705206,1748829042465,-151.0,0.00023958,7]
[363705208,1748829042474,-222.742843,0.00023958,7]
[363705210,1748829042484,-189.906571,0.00023958,7]
[363705212,1748829042493,-151.0,0.00023958,2]
[363705213,1748829042503,-151.0,0.00023958,2]
[363705214,1748829042514,-151.0,0.00023958,2]
[363705215,1748829042524,-151.0,0.00023958,2]
[363705216,1748829042534,-151.0,0.00023958,2]
[363705217,1748829042544,-165.923044,0.00023958,2]
[363705218,1748829042553,-11187.91986969,0.00023958,3]
[363705219,1748829042562,-26098.40706923,0.00023958,2]
[363705220,1748829042572,-262329.85847163,0.00023958,20]
[363705221,1748829042588,-8184.8095003,0.00023958,20]
[363705241,1748829046329,-2730.61988853,0.00017888,2]
[363705242,1748829046363,-2269.38011147,0.00017888,2]
[363705243,1748829046373,-500.0,0.00018069,2]
[363705244,1748829046382,-500.0,0.00018069,2]
[363705245,1748829046391,-497.15742522,0.00018069,2]
[363705247,1748829046428,-2016.52957857,0.00023479,2]
[363705248,1748829046437,-224.91,0.00023948,10]
[363705249,1748829046446,-39694.79931688,0.00023958,20]
[363705253,1748829239012,24057.989,0.00024649,120]
[363705256,1748829442596,225.677053,0.00013699,2]
[363705258,1748829508240,5378.4688091,0.00024649,120]
[363705263,1748829695447,492500.0,0.000246,120]
[363705264,1748829763943,878.169,0.0001552,2]
[363705268,1748830129605,12.51749534,0.00024657,120]
[363705270,1748830165049,10000.0,0.00022,120]
[363705271,1748830176714,10000.0,0.00021918,60]
[363705273,1748830190633,7266.8,0.00021918,60]
[363705323,1748830232385,-2829.28224529,0.00017092,2]
[363705325,1748830232397,-2170.71775471,0.00017092,2]
[363705327,1748830232406,-184.83933637,0.00017695,2]
[363705329,1748830232416,-300.0,0.00017793,2]
[363705330,1748830232426,-300.0,0.00017793,2]
[363705332,1748830232436,-277.46193614,0.00017794,2]
[363705334,1748830232446,-803.91,0.00017794,2]
[363705336,1748830232456,-430.0,0.00017794,2]
[363705338,1748830232466,-430.0,0.00017794,2]
[363705339,1748830232476,-430.0,0.00017794,2]
[363705341,1748830232486,-430.0,0.00017794,2]
[363705343,1748830232496,-430.0,0.00017794,2]
[363705344,1748830232506,-430.0,0.00017794,2]
[363705346,1748830232516,-430.0,0.00017794,2]
[363705348,1748830232527,-430.0,0.00017794,2]
[363705349,1748830232540,-430.0,0.00017794,2]
[363705351,1748830232550,-430.0,0.00017794,2]
[363705352,1748830232559,-430.0,0.00017794,2]
[363705353,1748830232569,-430.0,0.00017794,2]
[363705354,1748830232578,-441.43,0.00017794,2]